{"text_format":"1","workbook":"xlsx","n_sheets":3,"sheets":["Sheet1","Sheet2","Sheet3"],"not_rendered":{"charts":0,"images":0,"macros":1,"external_links":0,"defined_names":1,"comments":0,"pivot_tables":0},"unopened":[],"bounds":{"document_bytes":16777216,"sheet_cells":100000,"rows_first":2000,"rows_last":500,"rows_between":2000,"halvings":0,"cell_chars":16384,"cell_head_chars":4096},"cells_cut":0,"cells_raw":0,"read":"whole","date_system":"1900"}

{"sheet":"Sheet1","index":0,"n_rows":74,"n_cols":49,"rows_kept":74,"cut":false,"hidden":false,"merged":[[1,2,4,33]]}
[]
[null,null,"Completing the Square                                                                                                                                                                                                   National 5                                                                                                                                                                                                                                                                                          Created by Mr. Lafferty@mathsrevision.com"]
[]
[]
[]
[]
[null,null,"Q1.   Complete the square for the following quadratic function."]
[]
[null,null,null,null,null,null,null,null,null,null,null,null,null,null,null,null,null,null,null,null,null,null,null,null,null,null,null,null,null,null,null,null,null,null,null,null,null,null,null,null,{"$f":"ROUND(RAND()*(104-97)+97,0)","v":100}]
[null,null,null,null,null,null,null,null,null,null,null,null,null,{"$f":"AO15","v":""},{"$f":"AP15","v":"d"},{"$f":"AQ15","v":2},{"$f":"AR15","v":"+"},{"$f":"AS15","v":18},{"$f":"AT15","v":"d"},{"$f":"AU15","v":"+"},{"$f":"AV15","v":9},null,null,null,null,null,null,null,null,null,null,null,null,null,null,null,null,null,null,null,{"$f":"CHAR(AO9)","v":"d"},{"$f":"ROUND(RAND()*(1-1)+1,0)","v":1}]
[null,null,null,null,null,null,null,null,null,null,null,null,null,null,null,null,null,null,null,null,null,null,null,null,null,null,null,null,null,null,null,null,null,null,null,null,null,null,null,null,null,{"$f":"IF(AP10=1,\"\",AP10)","v":""},{"$f":"2*ROUND(RAND()*(10-1)+1,0)","v":18},{"$f":"ROUND(RAND()*(20-1)+1,0)","v":9}]
[null,null,null,null,null,null,null,null,null,null,null,null,null,null,null,null,null,null,null,null,null,null,null,null,null,null,null,null,null,null,null,null,null,null,null,null,null,null,null,null,null,null,null,null,null,null,null,{"$f":"-AP10*(AS13)*(AS13)+AR11","v":-72}]
[null,null,null,null,null,null,null,null,null,null,"answer =",null,null,null,null,null,null,null,null,null,null,null,null,null,null,null,null,null,null,null,null,null,null,null,null,null,null,null,null,null,{"$f":"AP11","v":""},"(",{"$f":"AO10","v":"d"},"+",{"$f":"AQ11/2","v":9},")",2,{"$f":"IF(AV12<0,\"-\",\"+\")","v":"-"},{"$f":"IF(AV12<0,-AV12,AV12)","v":72}]
[]
[null,null,null,null,null,null,null,null,null,null,null,null,null,null,null,null,null,null,null,null,null,null,null,null,null,null,null,null,null,null,null,null,null,null,null,null,null,null,null,null,{"$f":"AP11","v":""},{"$f":"AO10","v":"d"},{"$f":"AU13","v":2},"+",{"$f":"AQ11","v":18},{"$f":"AO10","v":"d"},"+",{"$f":"AR11","v":9}]
[]
[]
[null,null,"Q2.   Complete the square for the following quadratic function.."]
[]
[null,null,null,null,null,null,null,null,null,null,null,null,null,null,null,null,null,null,null,null,null,null,null,null,null,null,null,null,null,null,null,null,null,null,null,null,null,null,null,null,{"$f":"ROUND(RAND()*(122-118)+118,0)","v":119}]
[null,null,null,null,null,null,null,null,null,null,null,null,null,{"$f":"AO26","v":""},{"$f":"AP26","v":"w"},{"$f":"AQ26","v":2},{"$f":"AR26","v":"-"},{"$f":"AS26","v":4},{"$f":"AT26","v":"w"},{"$f":"AU26","v":"+"},{"$f":"AV26","v":5},null,null,null,null,null,null,null,null,null,null,null,null,null,null,null,null,null,null,null,{"$f":"CHAR(AO20)","v":"w"},{"$f":"ROUND(RAND()*(1-1)+1,0)","v":1}]
[null,null,null,null,null,null,null,null,null,null,null,null,null,null,null,null,null,null,null,null,null,null,null,null,null,null,null,null,null,null,null,null,null,null,null,null,null,null,null,null,null,{"$f":"IF(AP21=1,\"\",AP21)","v":""},{"$f":"2*ROUND(RAND()*(10-1)+1,0)","v":4},{"$f":"ROUND(RAND()*(20-1)+1,0)","v":5}]
[null,null,null,null,null,null,null,null,null,null,null,null,null,null,null,null,null,null,null,null,null,null,null,null,null,null,null,null,null,null,null,null,null,null,null,null,null,null,null,null,null,null,null,null,null,null,null,{"$f":"-AP21*(AS24)*(AS24)+AR22","v":1}]
[null,null,null,null,null,null,null,null,null,null,"answer =",null,null,null,null,null,null,null,null,null,null,null,null,null,null,null,null,null,null,null,null,null,null,null,null,null,null,null,null,null,{"$f":"AP22","v":""},"(",{"$f":"AO21","v":"w"},"-",{"$f":"AQ22/2","v":2},")",2,{"$f":"IF(AV23<0,\"-\",\"+\")","v":"+"},{"$f":"IF(AV23<0,-AV23,AV23)","v":1}]
[]
[null,null,null,null,null,null,null,null,null,null,null,null,null,null,null,null,null,null,null,null,null,null,null,null,null,null,null,null,null,null,null,null,null,null,null,null,null,null,null,null,{"$f":"AP22","v":""},{"$f":"AO21","v":"w"},{"$f":"AU24","v":2},"-",{"$f":"AQ22","v":4},{"$f":"AO21","v":"w"},"+",{"$f":"AR22","v":5}]
[]
[]
[null,null,"Q3.   Complete the square for the following quadratic function.."]
[]
[null,null,null,null,null,null,null,null,null,null,null,null,null,null,null,null,null,null,null,null,null,null,null,null,null,null,null,null,null,null,null,null,null,null,null,null,null,null,null,null,{"$f":"ROUND(RAND()*(104-97)+97,0)","v":99}]
[null,null,null,null,null,null,null,null,null,null,null,null,null,{"$f":"AO37","v":""},{"$f":"AP37","v":"c"},{"$f":"AQ37","v":2},{"$f":"AR37","v":"-"},{"$f":"AS37","v":8},{"$f":"AT37","v":"c"},{"$f":"AU37","v":"-"},{"$f":"AV37","v":10},null,null,null,null,null,null,null,null,null,null,null,null,null,null,null,null,null,null,null,{"$f":"CHAR(AO31)","v":"c"},{"$f":"ROUND(RAND()*(1-1)+1,0)","v":1}]
[null,null,null,null,null,null,null,null,null,null,null,null,null,null,null,null,null,null,null,null,null,null,null,null,null,null,null,null,null,null,null,null,null,null,null,null,null,null,null,null,null,{"$f":"IF(AP32=1,\"\",AP32)","v":""},{"$f":"2*ROUND(RAND()*(8-1)+1,0)","v":8},{"$f":"ROUND(RAND()*(20-1)+1,0)","v":10}]
[null,null,null,null,null,null,null,null,null,null,null,null,null,null,null,null,null,null,null,null,null,null,null,null,null,null,null,null,null,null,null,null,null,null,null,null,null,null,null,null,null,null,null,null,null,null,null,{"$f":"-AP32*(AS35)*(AS35)-AR33","v":-26}]
[null,null,null,null,null,null,null,null,null,null,"answer =",null,null,null,null,null,null,null,null,null,null,null,null,null,null,null,null,null,null,null,null,null,null,null,null,null,null,null,null,null,{"$f":"AP33","v":""},"(",{"$f":"AO32","v":"c"},"-",{"$f":"AQ33/2","v":4},")",2,{"$f":"IF(AV34<0,\"-\",\"+\")","v":"-"},{"$f":"IF(AV34<0,-AV34,AV34)","v":26}]
[]
[null,null,null,null,null,null,null,null,null,null,null,null,null,null,null,null,null,null,null,null,null,null,null,null,null,null,null,null,null,null,null,null,null,null,null,null,null,null,null,null,{"$f":"AP33","v":""},{"$f":"AO32","v":"c"},{"$f":"AU35","v":2},"-",{"$f":"AQ33","v":8},{"$f":"AO32","v":"c"},"-",{"$f":"AR33","v":10}]
[]
[]
[null,null,"Q4.   Complete the square for the following quadratic function.."]
[]
[null,null,null,null,null,null,null,null,null,null,null,null,null,null,null,null,null,null,null,null,null,null,null,null,null,null,null,null,null,null,null,null,null,null,null,null,null,null,null,null,{"$f":"ROUND(RAND()*(122-118)+118,0)","v":121}]
[null,null,null,null,null,null,null,null,null,null,null,null,null,{"$f":"AO48","v":""},{"$f":"AP48","v":"y"},{"$f":"AQ48","v":2},{"$f":"AR48","v":"+"},{"$f":"AS48","v":4},{"$f":"AT48","v":"y"},{"$f":"AU48","v":"-"},{"$f":"AV48","v":15},null,null,null,null,null,null,null,null,null,null,null,null,null,null,null,null,null,null,null,{"$f":"CHAR(AO42)","v":"y"},{"$f":"ROUND(RAND()*(1-1)+1,0)","v":1}]
[null,null,null,null,null,null,null,null,null,null,null,null,null,null,null,null,null,null,null,null,null,null,null,null,null,null,null,null,null,null,null,null,null,null,null,null,null,null,null,null,null,{"$f":"IF(AP43=1,\"\",AP43)","v":""},{"$f":"2*ROUND(RAND()*(8-1)+1,0)","v":4},{"$f":"ROUND(RAND()*(20-1)+1,0)","v":15}]
[null,null,null,null,null,null,null,null,null,null,null,null,null,null,null,null,null,null,null,null,null,null,null,null,null,null,null,null,null,null,null,null,null,null,null,null,null,null,null,null,null,null,null,null,null,null,null,{"$f":"-AP43*(AS46)*(AS46)-AR44","v":-19}]
[null,null,null,null,null,null,null,null,null,null,"answer =",null,null,null,null,null,null,null,null,null,null,null,null,null,null,null,null,null,null,null,null,null,null,null,null,null,null,null,null,null,{"$f":"AP44","v":""},"(",{"$f":"AO43","v":"y"},"+",{"$f":"AQ44/2","v":2},")",2,{"$f":"IF(AV45<0,\"-\",\"+\")","v":"-"},{"$f":"IF(AV45<0,-AV45,AV45)","v":19}]
[]
[null,null,null,null,null,null,null,null,null,null,null,null,null,null,null,null,null,null,null,null,null,null,null,null,null,null,null,null,null,null,null,null,null,null,null,null,null,null,null,null,{"$f":"AP44","v":""},{"$f":"AO43","v":"y"},{"$f":"AU46","v":2},"+",{"$f":"AQ44","v":4},{"$f":"AO43","v":"y"},"-",{"$f":"AR44","v":15}]
[]
[]
[null,null,{"$f":"\"Q5.   Re-write the function in the form -(\"&AO54&\" + b )\"&AP61&\" + c.\"","v":"Q5.   Re-write the function in the form -(z + b )² + c."}]
[]
[null,null,null,null,null,null,null,null,null,null,null,null,null,null,null,null,null,null,null,null,null,null,null,null,null,null,null,null,null,null,null,null,null,null,null,null,null,null,null,null,{"$f":"ROUND(RAND()*(122-118)+118,0)","v":122}]
[null,null,null,null,null,null,null,null,null,null,null,null,null,null,{"$f":"AO59","v":10},{"$f":"AP59","v":"-"},16,"z","-","z",2,null,null,null,null,null,null,null,null,null,null,null,null,null,null,null,null,null,null,null,{"$f":"CHAR(AO53)","v":"z"},{"$f":"ROUND(RAND()*(1-1)+1,0)","v":1}]
[null,null,null,null,null,null,null,null,null,null,null,null,null,null,null,null,null,null,null,null,null,null,null,null,null,null,null,null,null,null,null,null,null,null,null,null,null,null,null,null,null,{"$f":"IF(AP54=1,\"\",AP54)","v":""},{"$f":"2*ROUND(RAND()*(8-1)+1,0)","v":16},{"$f":"ROUND(RAND()*(20-1)+1,0)","v":10}]
[null,null,null,null,null,null,null,null,null,null,null,null,null,null,null,null,null,null,null,null,null,null,null,null,null,null,null,null,null,null,null,null,null,null,null,null,null,null,null,null,null,null,null,null,null,null,null,{"$f":"AP54*(AS57)*(AS57)+AR55","v":74}]
[null,null,null,null,null,null,null,null,null,null,"answer =",null,null,null,null,null,null,null,null,null,null,null,null,null,null,null,null,null,null,null,null,null,null,null,null,null,null,null,null,null,"-","(",{"$f":"AO54","v":"z"},"+",{"$f":"AQ55/2","v":8},")",2,{"$f":"IF(AV56<0,\"-\",\"+\")","v":"+"},{"$f":"IF(AV56<0,-AV56,AV56)","v":74}]
[null,null,null,null,null,null,null,null,null,null,null,null,null,null,null,null,null,null,null,null,null,null,null,null,null,null,null,null,null,null,null,null,null,null,null,null,null,null,null,null,"-",{"$f":"AO54","v":"z"},{"$f":"AU57","v":2},"-",{"$f":"AQ55","v":16},{"$f":"AO54","v":"z"},"+",{"$f":"AR55","v":10}]
[null,null,null,null,null,null,null,null,null,null,null,null,null,null,null,null,null,null,null,null,null,null,null,null,null,null,null,null,null,null,null,null,null,null,null,null,null,null,null,null,{"$f":"AV58","v":10},{"$f":"AR58","v":"-"},{"$f":"AS58","v":16},{"$f":"AT58","v":"z"},{"$f":"AO58","v":"-"},{"$f":"AP58","v":"z"},{"$f":"AQ58","v":2}]
[]
[null,null,null,null,null,null,null,null,null,null,null,null,null,null,null,null,null,null,null,null,null,null,null,null,null,null,null,null,null,null,null,null,null,null,null,null,null,null,null,null,null,"²"]
[null,null,{"$f":"\"Q6.   Re-write the function in the form -(\"&AO66&\" + b )\"&AP74&\" + c.\"","v":"Q6.   Re-write the function in the form -(x + b )² + c."}]
[]
[]
[null,null,null,null,null,null,null,null,null,null,null,null,null,null,{"$f":"AO72","v":18},{"$f":"AP72","v":"+"},{"$f":"AQ72","v":8},{"$f":"AR72","v":"x"},{"$f":"AS72","v":"-"},{"$f":"AT72","v":"x"},{"$f":"AU72","v":2},null,null,null,null,null,null,null,null,null,null,null,null,null,null,null,null,null,null,null,{"$f":"ROUND(RAND()*(122-118)+118,0)","v":120},{"$f":"ROUND(RAND()*(1-1)+1,0)","v":1}]
[null,null,null,null,null,null,null,null,null,null,null,null,null,null,null,null,null,null,null,null,null,null,null,null,null,null,null,null,null,null,null,null,null,null,null,null,null,null,null,null,{"$f":"CHAR(AO65)","v":"x"},{"$f":"IF(AP65=1,\"\",AP65)","v":""},{"$f":"2*ROUND(RAND()*(8-1)+1,0)","v":8},{"$f":"ROUND(RAND()*(20-1)+1,0)","v":18}]
[null,null,null,null,null,null,null,null,null,null,null,null,null,null,null,null,null,null,null,null,null,null,null,null,null,null,null,null,null,null,null,null,null,null,null,null,null,null,null,null,null,null,null,null,null,null,null,{"$f":"AP65*(AS68)*(AS68)+AR66","v":34}]
[null,null,null,null,null,null,null,null,null,null,"answer =",null,null,null,null,null,null,null,null,null,null,null,null,null,null,null,null,null,null,null,null,null,null,null,null,null,null,null,null,null,"-","(",{"$f":"AO66","v":"x"},"-",{"$f":"AQ66/2","v":4},")",2,{"$f":"IF(AV67<0,\"-\",\"+\")","v":"+"},{"$f":"IF(AV67<0,-AV67,AV67)","v":34}]
[]
[null,null,null,null,null,null,null,null,null,null,null,null,null,null,null,null,null,null,null,null,null,null,null,null,null,null,null,null,null,null,null,null,null,null,null,null,null,null,null,null,"-",{"$f":"AO66","v":"x"},{"$f":"AU68","v":2},"-",{"$f":"AQ66","v":8},{"$f":"AO66","v":"x"},"+",{"$f":"AR66","v":18}]
[]
[null,null,null,null,null,null,null,null,null,null,null,null,null,null,null,null,null,null,null,null,null,null,null,null,null,null,null,null,null,null,null,null,null,null,null,null,null,null,null,null,{"$f":"AV70","v":18},"+",{"$f":"AS70","v":8},{"$f":"AT70","v":"x"},{"$f":"AO70","v":"-"},{"$f":"AT70","v":"x"},{"$f":"AQ70","v":2}]
[]
[null,null,null,null,null,null,null,null,null,null,null,null,null,null,null,null,null,null,null,null,null,null,null,null,null,null,null,null,null,null,null,null,null,null,null,null,null,null,null,null,null,"²"]

{"sheet":"Sheet2","index":1,"n_rows":0,"n_cols":0,"rows_kept":0,"cut":false,"hidden":false,"merged":[]}

{"sheet":"Sheet3","index":2,"n_rows":0,"n_cols":0,"rows_kept":0,"cut":false,"hidden":false,"merged":[]}